bitfinex/quotes_BTCUSD_20250614
["timestamp","ask_amount","ask_price","bid_price","bid_amount"]
[1749923376617,0.2006687,104650.0,104640.0,0.29255451]
[1749923376827,0.2006687,104650.0,104640.0,0.29132286]
[1749923377045,0.2006687,104650.0,104640.0,0.27344238]
[1749923377263,0.2006687,104650.0,104640.0,0.29132286]
[1749923377473,0.2006687,104650.0,104640.0,0.28299858]
[1749923377681,0.2006687,104650.0,104640.0,0.30087906]
[1749923377894,0.2006687,104650.0,104640.0,0.28699858]
[1749923378114,0.2006687,104650.0,104640.0,0.31443517]
[1749923378559,0.2006687,104650.0,104640.0,0.31442267]
[1749923378771,0.2006687,104650.0,104640.0,0.29531036]
[1749923379022,0.2006687,104650.0,104640.0,0.28575406]
[1749923379233,0.2006687,104650.0,104640.0,0.26788608]
[1749923379451,0.2006687,104650.0,104640.0,0.28775406]
[1749923379888,0.19111323,104650.0,104640.0,0.08706798]
[1749923380330,0.19111323,104650.0,104640.0,0.27819947]
[1749923380549,0.19111323,104650.0,104640.0,0.08706798]
[1749923380986,0.19111323,104650.0,104640.0,0.09662455]
[1749923381198,0.19111323,104650.0,104640.0,0.28775604]
[1749923381409,0.23211323,104650.0,104640.0,0.28775604]
[1749923381622,0.23211323,104650.0,104640.0,0.29731252]
[1749923382261,0.23211323,104650.0,104640.0,0.29724851]
[1749923382512,0.01911067,104650.0,104640.0,0.31636065]
[1749923382714,0.03822089,104650.0,104640.0,0.32841658]
[1749923382958,0.03822089,104650.0,104640.0,0.32841639]
[1749923383169,0.03822089,104650.0,104640.0,0.32841631]
[1749923383370,0.03822089,104650.0,104640.0,0.3284163]
[1749923383791,0.03822089,104650.0,104640.0,0.32841629]
[1749923383997,0.23888978,104650.0,104640.0,0.30105677]
[1749923384140,0.22933485,104650.0,104640.0,0.31886048]
[1749923384378,0.03822162,104650.0,104640.0,0.31886048]
[1749923384759,0.01911049,104650.0,104640.0,0.32841595]
[1749923384968,0.02866596,104650.0,104640.0,0.32841596]
[1749923385182,0.01911049,104650.0,104640.0,0.32841596]
[1749923385387,0.02866596,104650.0,104640.0,0.32841596]
[1749923385589,0.01911049,104650.0,104640.0,0.31061224]
[1749923385789,0.01911049,104650.0,104640.0,0.32841596]
[1749923386207,0.02866596,104650.0,104640.0,0.32841596]
[1749923387043,0.02866596,104650.0,104640.0,0.31061224]
[1749923387254,0.02866596,104650.0,104640.0,0.32841596]
[1749923388001,0.01911049,104650.0,104640.0,0.32841596]
[1749923388203,0.02866596,104650.0,104640.0,0.32841596]
[1749923388407,0.02866587,104650.0,104640.0,0.32842933]
[1749923388820,0.03822134,104650.0,104640.0,0.32842937]
[1749923389026,0.03822134,104650.0,104640.0,0.32842953]
[1749923389236,0.02866596,104650.0,104640.0,0.32842954]
[1749923389427,0.21977919,104650.0,104640.0,0.29976147]
[1749923389627,0.23889042,104650.0,104640.0,0.29150029]
[1749923389875,0.22933522,104650.0,104640.0,0.30931759]
[1749923390246,0.21977993,104650.0,104640.0,0.30931759]
[1749923390509,0.20066889,104650.0,104640.0,0.0566173]
[1749923390700,0.19111323,104650.0,104640.0,0.1808573]
[1749923390909,0.19111323,104650.0,104640.0,0.18085756]
[1749923391138,0.19111323,104650.0,104640.0,0.1808576]
[1749923391349,0.53111323,104650.0,104640.0,0.0238176]
[1749923391478,5.19474523,104650.0,104640.0,0.0238176]
[1749923391682,5.21756664,104650.0,104640.0,0.006]
[1749923392656,5.21756664,104650.0,104630.0,0.2102637]
[1749923392890,5.21756664,104650.0,104630.0,0.21852656]
[1749923392891,0.54068797,104640.0,104630.0,0.21852656]
[1749923393587,0.54068797,104640.0,104630.0,0.2007064]
[1749923393819,0.54068797,104640.0,104630.0,0.21852656]
[1749923394043,0.54068797,104640.0,104630.0,0.21952656]
[1749923394296,0.54068797,104640.0,104630.0,0.2017064]
[1749923394486,0.57188797,104640.0,104630.0,0.01882016]
[1749923394687,0.54068797,104640.0,104630.0,0.01882016]
[1749923394903,0.54068797,104640.0,104630.0,0.001]
[1749923395113,0.54068797,104640.0,104630.0,0.01882016]
[1749923395320,0.57188797,104640.0,104630.0,0.01882016]
[1749923396151,0.54068797,104640.0,104630.0,0.01882016]
[1749923396773,0.58168797,104640.0,104630.0,0.001]
[1749923396981,0.58168797,104640.0,104630.0,0.01882016]
[1749923397184,0.58168797,104640.0,104630.0,0.01880883]
[1749923397389,0.54068797,104640.0,104630.0,0.01880883]
[1749923397583,0.58168797,104640.0,104630.0,0.01880883]
[1749923398869,0.58168797,104640.0,104630.0,0.001]
[1749923399076,0.58168797,104640.0,104630.0,0.01880883]
[1749923399207,0.58168797,104640.0,104630.0,0.001]
[1749923399432,0.58168797,104640.0,104630.0,0.01880883]
[1749923399826,0.58168797,104640.0,104630.0,0.001]
[1749923400022,0.58168797,104640.0,104630.0,0.05197406]
[1749923400779,0.58168797,104640.0,104630.0,0.0341]
[1749923400985,0.58168797,104640.0,104630.0,0.05197406]
[1749923401217,0.58168797,104640.0,104630.0,0.0341]
[1749923401433,0.58168797,104640.0,104630.0,0.05197406]
[1749923401644,0.58168797,104640.0,104630.0,0.24436463]
[1749923401859,0.58168797,104640.0,104630.0,0.3038959]
[1749923402076,0.58168797,104640.0,104630.0,0.28602184]
[1749923402329,0.58168797,104640.0,104630.0,0.30389533]
[1749923402587,0.58168797,104640.0,104630.0,0.28602175]
[1749923402856,0.60080074,104640.0,104630.0,0.30389506]
[1749923403101,0.35911213,104640.0,104630.0,0.31345189]
[1749923403345,0.40966852,104640.0,104630.0,0.3134522]
[1749923403589,0.61035658,104640.0,104630.0,0.30389507]
[1749923403796,0.61035658,104640.0,104630.0,0.30389519]
[1749923404013,0.40966852,104640.0,104630.0,0.31345203]
[1749923404231,0.419225,104640.0,104630.0,0.29557859]
[1749923404478,0.61035649,104640.0,104630.0,0.27646463]
[1749923404679,0.60080056,104640.0,104630.0,0.30389524]
[1749923404884,0.55980056,104640.0,104630.0,0.30389532]
[1749923405123,0.60080056,104640.0,104630.0,0.31345244]
[1749923405336,0.60080056,104640.0,104630.0,0.29557896]
[1749923405559,0.60080056,104640.0,104630.0,0.31345244]
[1749923405798,0.60080056,104640.0,104630.0,0.09363096]
[1749923406007,0.60456153,104640.0,104630.0,0.07575748]
[1749923406245,0.60456153,104640.0,104630.0,0.01887369]
[1749923406451,0.60456153,104640.0,104630.0,0.01887376]
[1749923406657,0.60456153,104640.0,104630.0,0.001]
[1749923407088,0.60456153,104640.0,104630.0,0.01887379]
[1749923407294,0.60456153,104640.0,104630.0,0.001]
[1749923407523,0.60456153,104640.0,104630.0,0.01887379]
[1749923407706,0.56356153,104640.0,104630.0,0.29333814]
[1749923407961,0.43258281,104640.0,104630.0,0.30289526]
[1749923408179,0.59128454,104640.0,104630.0,0.0652]
[1749923408397,0.58172806,104640.0,104630.0,0.0652]
[1749923408630,0.58172806,104640.0,104630.0,0.28378069]
[1749923408846,0.58172806,104640.0,104630.0,0.28502166]
[1749923409053,0.38198104,104640.0,104630.0,0.32200926]
[1749923409262,0.36866844,104640.0,104630.0,0.32200926]
[1749923409687,0.36866844,104640.0,104630.0,0.32200903]
[1749923410513,0.37822446,104640.0,104630.0,0.32200903]
[1749923411184,0.37822446,104640.0,104630.0,0.32202364]
[1749923411622,0.38778094,104640.0,104630.0,0.32202363]
[1749923411838,0.34,104640.0,104630.0,0.3220233]
[1749923412053,0.34955593,104640.0,104630.0,0.30413562]
[1749923412260,0.34955593,104640.0,104630.0,0.32205914]
[1749923412471,0.35911204,104640.0,104630.0,0.30413562]
[1749923412689,0.35911204,104640.0,104630.0,0.32205908]
[1749923413132,0.35911204,104640.0,104630.0,0.30413562]
[1749923413353,0.34955584,104640.0,104630.0,0.32205912]
[1749923413581,0.35911186,104640.0,104630.0,0.30413562]
[1749923413790,0.35911186,104640.0,104630.0,0.32205909]
[1749923414211,0.34955584,104640.0,104630.0,0.32205911]
[1749923414326,0.34,104640.0,104630.0,0.40037738]
[1749923415012,0.34,104640.0,104630.0,0.41830026]
[1749923415558,0.34,104640.0,104630.0,0.40037738]
[1749923415767,0.34,104640.0,104630.0,0.41830031]
[1749923415974,0.34,104640.0,104630.0,0.40037738]
[1749923416153,0.34,104640.0,104630.0,0.4183003]
[1749923416600,0.35911013,104650.0,104640.0,0.2823001]
[1749923416805,0.3686656,104650.0,104640.0,0.2823001]
[1749923417007,0.35911013,104650.0,104640.0,0.30022277]
[1749923417160,0.36866551,104650.0,104640.0,0.45778271]
[1749923417705,0.36866551,104650.0,104640.0,0.4398601]
[1749923417850,0.37922098,104650.0,104640.0,0.4398601]
[1749923418054,0.37922098,104650.0,104640.0,0.45778271]
[1749923418904,0.38022098,104650.0,104640.0,0.45778271]
[1749923419453,0.38022098,104650.0,104640.0,0.4398601]
[1749923419661,0.342,104650.0,104640.0,0.55402447]
[1749923419884,0.002,104650.0,104640.0,0.55402351]
[1749923420273,0.002,104650.0,104640.0,0.53610186]
[1749923420469,0.002,104650.0,104640.0,0.55402276]
[1749923420672,0.002,104650.0,104640.0,0.55402275]
[1749923420907,0.002,104650.0,104640.0,0.53610186]
[1749923421359,0.002,104650.0,104640.0,0.55402246]
[1749923421580,0.002,104650.0,104640.0,0.53610186]
[1749923421793,0.002,104650.0,104640.0,0.55402221]
[1749923422007,0.002,104650.0,104640.0,0.5540222]
[1749923422221,0.002,104650.0,104640.0,0.55402245]
[1749923422460,0.002,104650.0,104640.0,0.53610186]
[1749923422668,0.002,104650.0,104640.0,0.55402245]
[1749923423294,0.002,104650.0,104640.0,0.53610186]
[1749923423514,0.002,104650.0,104640.0,0.55402244]
[1749923423951,0.002,104650.0,104640.0,0.53610186]
[1749923424173,0.002,104650.0,104640.0,0.55402221]
[1749923424382,0.3878636,104660.0,104650.0,0.28287911]
[1749923424383,0.00955392,104660.0,104650.0,0.28287911]
[1749923424599,0.00955392,104660.0,104650.0,0.39697918]
[1749923424817,0.00955392,104660.0,104650.0,0.39697933]
[1749923425040,0.2799411,104670.0,104660.0,0.21975838]
[1749923425246,0.2799411,104670.0,104660.0,0.2377602]
[1749923425455,0.2799411,104670.0,104660.0,0.2610061]
[1749923425661,0.2799411,104670.0,104660.0,0.25270189]
[1749923425871,0.2799411,104670.0,104660.0,0.27056047]
[1749923426084,0.2799411,104670.0,104660.0,0.28011477]
[1749923426310,0.6199411,104670.0,104660.0,0.28966898]
[1749923426543,0.64681817,104670.0,104660.0,0.27181038]
[1749923427033,0.29329701,104670.0,104660.0,0.28966894]
[1749923427266,0.29529701,104670.0,104660.0,0.28966849]
[1749923427694,0.29329701,104670.0,104660.0,0.28010336]
[1749923427939,0.29329701,104670.0,104660.0,0.28010329]
[1749923428176,0.63429701,104670.0,104660.0,0.28010354]
[1749923428397,0.63029701,104670.0,104660.0,0.22819505]
[1749923428635,0.63229701,104670.0,104660.0,0.22819505]
[1749923428876,0.63229701,104670.0,104660.0,0.22819504]
[1749923429516,0.63229701,104670.0,104660.0,0.23774951]
[1749923429726,0.63229701,104670.0,104660.0,0.21990216]
[1749923430632,0.63229701,104670.0,104660.0,0.27860389]
[1749923431519,0.4507734,104670.0,104660.0,0.27031019]
[1749923431743,0.46032723,104670.0,104660.0,0.27031019]
[1749923431971,0.46032723,104670.0,104660.0,0.28815732]
[1749923432175,0.4097334,104670.0,104660.0,0.28815732]
[1749923432402,0.66095768,104670.0,104660.0,0.31150322]
[1749923432623,0.66095768,104670.0,104660.0,0.3210572]
[1749923432921,0.66095768,104670.0,104660.0,0.32105719]
[1749923433348,0.66095768,104670.0,104660.0,0.32105695]
[1749923433783,0.66095768,104670.0,104660.0,0.32105738]
[1749923433999,0.46032714,104670.0,104660.0,0.32105683]
[1749923434213,0.4097334,104670.0,104660.0,0.30320974]
[1749923434433,0.44121975,104670.0,104660.0,0.32105649]
[1749923434629,0.4507734,104670.0,104660.0,0.32105648]
[1749923434842,0.4507734,104670.0,104660.0,0.32105652]
[1749923435048,0.4507734,104670.0,104660.0,0.32105669]
[1749923435881,0.4507734,104670.0,104660.0,0.32105668]
[1749923436090,0.4497734,104670.0,104660.0,0.32105668]
[1749923436300,0.4507734,104670.0,104660.0,0.46028974]
[1749923436525,0.4507734,104670.0,104660.0,0.47814275]
[1749923436865,0.4497734,104670.0,104660.0,0.47814275]
[1749923437069,0.4487734,104670.0,104660.0,0.47814275]
[1749923438037,0.43921975,104670.0,104660.0,0.47814268]
[1749923438240,0.4487734,104670.0,104660.0,0.47814268]
[1749923438555,0.4487734,104670.0,104660.0,0.46028974]
[1749923438766,0.4487734,104670.0,104660.0,0.47814255]
[1749923438982,0.4487734,104670.0,104660.0,0.46028974]
[1749923439393,0.4487734,104670.0,104660.0,0.47814257]
[1749923439592,0.4487734,104670.0,104660.0,0.47814263]
[1749923439764,0.4487734,104670.0,104660.0,0.47814265]
[1749923440356,0.4487734,104670.0,104660.0,0.46028974]
[1749923440568,0.66790289,104670.0,104660.0,0.46028974]
[1749923440780,0.66790289,104670.0,104660.0,0.47819982]
[1749923441188,0.47682618,104670.0,104660.0,0.46028974]
[1749923441415,0.46788097,104670.0,104660.0,0.47819984]
[1749923441617,0.47682616,104670.0,104660.0,0.46028974]
[1749923441828,0.46788097,104670.0,104660.0,0.46028974]
[1749923442051,0.47682617,104670.0,104660.0,0.47819984]
[1749923442266,0.47682617,104670.0,104660.0,0.47819983]
[1749923442476,0.47682617,104670.0,104660.0,0.46028974]
[1749923442700,0.47682617,104670.0,104660.0,0.47819984]
[1749923442912,0.47682618,104670.0,104660.0,0.47819984]
[1749923443122,0.65895768,104670.0,104660.0,0.47819984]
[1749923443333,0.66790289,104670.0,104660.0,0.46028974]
[1749923443556,0.66790289,104670.0,104660.0,0.47819984]
[1749923443557,0.68183568,104670.0,104660.0,0.47819984]
[1749923444009,0.69078089,104670.0,104660.0,0.45073564]
[1749923444221,0.6722824,104670.0,104660.0,0.46864574]
[1749923444850,0.6722824,104670.0,104660.0,0.45073564]
[1749923445054,0.68122755,104670.0,104660.0,0.44118144]
[1749923445318,0.68122755,104670.0,104660.0,0.46864574]
[1749923445541,0.66272884,104670.0,104660.0,0.44937725]
[1749923445746,0.66272884,104670.0,104660.0,0.45893154]
[1749923445747,0.66273685,104670.0,104660.0,0.45893154]
[1749923445973,0.67168189,104670.0,104660.0,0.45893154]
[1749923446186,0.67168179,104670.0,104660.0,0.44102144]
[1749923446401,0.66273685,104670.0,104660.0,0.46848578]
[1749923446613,0.48060512,104670.0,104660.0,0.46848578]
[1749923446827,0.48060512,104670.0,104660.0,0.46848571]
[1749923447041,0.47166014,104670.0,104660.0,0.45057564]
[1749923447257,0.48060508,104670.0,104660.0,0.46848577]
[1749923447468,0.47166014,104670.0,104660.0,0.46848577]
[1749923447919,0.48060542,104670.0,104660.0,0.46848577]
[1749923448131,0.66173685,104670.0,104660.0,0.45057564]
[1749923448347,0.62069685,104670.0,104660.0,0.45257564]
[1749923448575,0.62069685,104670.0,104660.0,0.47148577]
[1749923448776,0.41945757,104670.0,104660.0,0.47148577]
[1749923449061,0.41567832,104670.0,104660.0,0.46312974]
[1749923449253,0.42523208,104670.0,104660.0,0.48103981]
[1749923449453,0.42523208,104670.0,104660.0,0.48103986]
[1749923449657,0.42523205,104670.0,104660.0,0.48103986]
[1749923449881,0.41628677,104670.0,104660.0,0.48103986]
[1749923450130,0.41628677,104670.0,104660.0,0.46312974]
[1749923450357,0.42523205,104670.0,104660.0,0.48103986]
[1749923450786,0.41567831,104670.0,104660.0,0.48103985]
[1749923451003,0.41567833,104670.0,104660.0,0.46312974]
[1749923451210,0.41567833,104670.0,104660.0,0.48103978]
[1749923451347,0.41567833,104670.0,104660.0,0.46312974]
[1749923451552,0.41567833,104670.0,104660.0,0.48103979]
[1749923452098,0.41567944,104670.0,104660.0,0.48103979]
[1749923452316,0.41567944,104670.0,104660.0,0.481042]
[1749923452514,0.41567944,104670.0,104660.0,0.46312974]
[1749923452745,0.41567944,104670.0,104660.0,0.481042]
[1749923452931,0.41567949,104670.0,104660.0,0.46312974]
[1749923453173,0.41567949,104670.0,104660.0,0.481042]
[1749923453595,0.40673303,104670.0,104660.0,0.46312974]
[1749923453798,0.40673303,104670.0,104660.0,0.48104205]
[1749923454003,0.41567949,104670.0,104660.0,0.46312974]
[1749923454266,0.41568644,104670.0,104660.0,0.46312974]
[1749923454469,0.41568703,104670.0,104660.0,0.48105615]
[1749923454914,0.41568738,104670.0,104660.0,0.48105612]
[1749923455329,0.41568716,104670.0,104660.0,0.48105612]
[1749923455570,0.40673294,104670.0,104660.0,0.48105612]
[1749923455800,0.41568697,104670.0,104660.0,0.48105611]
[1749923456011,0.04702687,104670.0,104660.0,0.57729786]
[1749923456221,0.37807291,104670.0,104660.0,0.5593715]
[1749923456418,0.38702753,104670.0,104660.0,0.57729665]
[1749923456643,0.39658063,104670.0,104660.0,0.57729661]
[1749923456858,0.39658065,104670.0,104660.0,0.57729667]
[1749923457065,0.39658067,104670.0,104660.0,0.57729679]
[1749923457268,0.39658054,104670.0,104660.0,0.57729679]
[1749923457489,0.38762601,104670.0,104660.0,0.5593715]
[1749923457664,0.39658065,104670.0,104660.0,0.57729696]
[1749923457801,0.38762601,104670.0,104660.0,0.57729695]
[1749923458015,0.39658066,104670.0,104660.0,0.57729695]
[1749923458217,0.39658066,104670.0,104660.0,0.5593715]
[1749923458417,0.38762601,104670.0,104660.0,0.57729694]
[1749923458658,0.39658066,104670.0,104660.0,0.57729694]
[1749923458872,0.39658074,104670.0,104660.0,0.5593715]
[1749923459086,0.39658087,104670.0,104660.0,0.57729689]
[1749923459305,0.39658087,104670.0,104660.0,0.57729687]
[1749923459765,0.39658198,104670.0,104660.0,0.57729687]
[1749923460006,0.39658261,104670.0,104660.0,0.5593715]
[1749923460217,0.3965827,104670.0,104660.0,0.57729687]
[1749923460451,0.38762592,104670.0,104660.0,0.5593715]
[1749923460710,0.39658304,104670.0,104660.0,0.5593715]
[1749923461231,0.40613666,104670.0,104660.0,0.57729674]
[1749923461465,0.3971792,104670.0,104660.0,0.5593715]
[1749923461722,0.40613669,104670.0,104660.0,0.57729687]
[1749923461935,0.40613669,104670.0,104660.0,0.5593715]
[1749923462143,0.40613669,104670.0,104660.0,0.57729687]
[1749923462349,0.3971792,104670.0,104660.0,0.5593715]
[1749923462578,0.40613669,104670.0,104660.0,0.57729687]
[1749923462775,0.3971792,104670.0,104660.0,0.5593715]
[1749923462987,0.40613652,104670.0,104660.0,0.57729687]
[1749923463186,0.40613613,104670.0,104660.0,0.57729687]
[1749923463391,0.3971792,104670.0,104660.0,0.57729687]
[1749923463598,0.40613617,104670.0,104660.0,0.57729687]
[1749923463801,0.40613624,104670.0,104660.0,0.5593715]
[1749923464250,0.41568979,104670.0,104660.0,0.57729687]
[1749923464453,0.41568979,104670.0,104660.0,0.57729686]
[1749923464655,0.41568969,104670.0,104660.0,0.57729687]
[1749923464857,0.40673257,104670.0,104660.0,0.57729687]
[1749923465065,0.41568969,104670.0,104660.0,0.57729687]
[1749923465497,0.40613623,104670.0,104660.0,0.57729687]
[1749923465917,0.40613617,104670.0,104660.0,0.57729687]
[1749923466132,0.40613618,104670.0,104660.0,0.57729977]
[1749923466345,0.40613766,104670.0,104660.0,0.57729977]
[1749923466547,0.39717911,104670.0,104660.0,0.57729977]
[1749923466755,0.40613765,104670.0,104660.0,0.5593715]
[1749923466963,0.41569102,104670.0,104660.0,0.57729977]
[1749923467163,0.40613765,104670.0,104660.0,0.57729977]
[1749923467367,0.40673248,104670.0,104660.0,0.57729946]
[1749923467580,0.40613772,104670.0,104660.0,0.5593715]
[1749923467781,0.40613772,104670.0,104660.0,0.57729947]
[1749923468019,0.39717911,104670.0,104660.0,0.5593715]
[1749923468222,0.39717911,104670.0,104660.0,0.57727329]
[1749923468794,0.39717911,104670.0,104660.0,0.57727335]
[1749923469162,0.39717911,104670.0,104660.0,0.57727318]
[1749923469357,0.40673248,104670.0,104660.0,0.42035325]
[1749923469559,0.39717911,104670.0,104660.0,0.57727326]
[1749923469786,0.39717911,104670.0,104660.0,0.5593715]
[1749923470145,0.39717911,104670.0,104660.0,0.5772733]
[1749923470542,0.39717911,104670.0,104660.0,0.5593715]
[1749923471035,0.39717911,104670.0,104660.0,0.57727332]
[1749923471247,0.39717911,104670.0,104660.0,0.57727335]
[1749923471762,0.39717911,104670.0,104660.0,0.5593715]
[1749923472019,0.39717911,104670.0,104660.0,0.57727335]
[1749923473542,0.40673239,104670.0,104660.0,0.57727335]
[1749923474441,0.40673239,104670.0,104660.0,0.5593715]
[1749923474652,0.39717911,104670.0,104660.0,0.57727335]
[1749923475335,0.39717911,104670.0,104660.0,0.5593715]
[1749923475554,0.38762592,104670.0,104660.0,0.57727335]
[1749923475820,0.39717911,104670.0,104660.0,0.57727335]
[1749923476501,0.39717911,104670.0,104660.0,0.5593715]
[1749923476720,0.39717911,104670.0,104660.0,0.57727335]
[1749923477155,0.39717911,104670.0,104660.0,0.5593715]
[1749923477376,0.39717911,104670.0,104660.0,0.57727335]
[1749923478559,0.38762592,104670.0,104660.0,0.57727335]
[1749923478817,0.03807291,104670.0,104660.0,0.57727335]
[1749923479073,0.3905121,104680.0,104660.0,0.57727335]
[1749923479074,0.40900749,104680.0,104670.0,0.28403711]
[1749923479301,0.40961666,104680.0,104670.0,0.28403711]
[1749923479509,0.42811271,104680.0,104670.0,0.30193739]
[1749923479715,0.42811259,104680.0,104670.0,0.30193742]
[1749923479922,0.42811256,104680.0,104670.0,0.28403711]
[1749923480136,0.34894335,104680.0,104670.0,0.30193765]
[1749923480320,0.34894335,104680.0,104670.0,0.39817941]
[1749923480321,0.38926584,104680.0,104670.0,0.39817941]
[1749923480556,0.3892658,104680.0,104670.0,0.39817941]
[1749923481171,0.38032249,104680.0,104670.0,0.39817941]
[1749923481560,0.38987459,104680.0,104670.0,0.39817941]
[1749923482501,0.04032249,104680.0,104670.0,0.39817941]
[1749923482705,0.04987459,104680.0,104670.0,0.39817941]
[1749923482869,0.04032249,104680.0,104670.0,0.39817941]
[1749923483912,0.04032249,104680.0,104670.0,0.39816618]
[1749923485127,0.04032249,104680.0,104670.0,0.3981662]
[1749923488002,0.04032249,104680.0,104670.0,0.39817216]
[1749923490308,0.04987459,104680.0,104670.0,0.39817216]
[1749923490737,0.04987459,104680.0,104670.0,0.39817624]
[1749923491164,0.39942687,104680.0,104670.0,0.39817624]
[1749923491365,0.64149116,104680.0,104670.0,0.4907566]
[1749923491573,0.45043252,104680.0,104670.0,0.50030979]
[1749923491776,0.45043252,104680.0,104670.0,0.50031023]
[1749923492038,0.4408796,104680.0,104670.0,0.50031023]
[1749923492243,0.45043224,104680.0,104670.0,0.50031023]
[1749923492481,0.45043215,104680.0,104670.0,0.50031023]
[1749923493535,0.41853215,104680.0,104670.0,0.50031023]
[1749923494258,0.4089796,104680.0,104670.0,0.48241242]
[1749923494472,0.01910474,104680.0,104670.0,0.5003139]
[1749923494974,0.02865738,104680.0,104670.0,0.5003139]
[1749923495524,0.02865738,104680.0,104670.0,0.48241242]
[1749923495919,0.06694503,104680.0,104670.0,0.48241242]
[1749923496527,0.06694503,104680.0,104670.0,0.51301242]
[1749923498066,0.05739239,104680.0,104670.0,0.51301242]
[1749923498270,0.04783993,104680.0,104670.0,0.51301242]
[1749923498556,0.05739239,104680.0,104670.0,0.51301242]
[1749923498769,0.03828765,104680.0,104670.0,0.54611242]
[1749923499210,0.01910255,104690.0,104680.0,0.28341612]
[1749923499382,0.0286541,104690.0,104680.0,0.37965788]
[1749923499638,0.57502683,104700.0,104690.0,0.21969513]
[1749923499860,0.15455564,104700.0,104690.0,0.21969513]
[1749923500073,0.2132338,104700.0,104690.0,0.25029513]
[1749923500291,0.2132338,104700.0,104690.0,0.40717513]
[1749923500509,0.20368307,104700.0,104690.0,0.53471689]
[1749923500715,0.2132338,104700.0,104690.0,0.53471689]
[1749923501044,0.20368307,104700.0,104690.0,0.53471689]
[1749923501627,0.21323371,104700.0,104690.0,0.53471689]
[1749923501835,0.20368307,104700.0,104690.0,0.53471689]
[1749923501986,0.2132338,104700.0,104690.0,0.55033392]
[1749923502186,0.21323371,104700.0,104690.0,0.53571689]
[1749923502914,0.21323362,104700.0,104690.0,0.53771689]
[1749923503358,0.56278435,104700.0,104690.0,0.53771689]
[1749923504271,0.56278426,104700.0,104690.0,0.53771689]
[1749923504435,0.55323362,104700.0,104690.0,0.53771689]
[1749923504593,0.54368307,104700.0,104690.0,0.53771689]
[1749923504829,0.18458226,104700.0,104690.0,0.53771689]
[1749923511112,0.18458226,104700.0,104690.0,0.5556183]
[1749923512133,0.18458226,104700.0,104690.0,0.53771689]
[1749923512345,0.18458226,104700.0,104690.0,0.55558007]
[1749923512776,0.18458226,104700.0,104690.0,0.5555801]
[1749923512980,0.18458226,104700.0,104690.0,0.55557993]
[1749923513185,0.18458226,104700.0,104690.0,0.53771689]
[1749923513594,0.18458226,104700.0,104690.0,0.55557991]
[1749923514228,0.18458226,104700.0,104690.0,0.55557988]
[1749923514654,0.14500528,104700.0,104690.0,0.53771689]
[1749923515493,0.14500528,104700.0,104690.0,0.55557893]
[1749923515689,0.14500528,104700.0,104690.0,0.55557892]
[1749923515910,0.14500528,104700.0,104690.0,0.55557895]
[1749923516335,0.14500528,104700.0,104690.0,0.53771689]
[1749923520057,0.03901655,104710.0,104700.0,0.21967414]
[1749923520261,0.03901655,104710.0,104700.0,0.3783159]
[1749923522584,0.51109642,104730.0,104720.0,0.21963219]
[1749923522788,0.51047898,104730.0,104720.0,0.21963219]
[1749923522987,0.51047647,104730.0,104720.0,0.21963219]
[1749923523212,0.33454041,104730.0,104720.0,0.21963219]
[1749923523415,0.34408822,104730.0,104720.0,0.21963219]
[1749923523618,0.36318414,104730.0,104720.0,0.21963219]
[1749923523842,0.56469986,104730.0,104720.0,0.21963219]
[1749923524048,0.36418426,104730.0,104720.0,0.21963219]
[1749923524249,0.35525587,104730.0,104720.0,0.21963219]
[1749923524457,0.36418426,104730.0,104720.0,0.21963219]
[1749923524654,0.35525587,104730.0,104720.0,0.21963219]
[1749923524855,0.36718426,104730.0,104720.0,0.21963219]
[1749923525103,0.36480414,104730.0,104720.0,0.21963219]
[1749923525297,0.37373253,104730.0,104720.0,0.21963219]
[1749923525522,0.37373351,104730.0,104720.0,0.21963219]
[1749923525734,0.37273351,104730.0,104720.0,0.21963219]
[1749923526550,0.41152885,104730.0,104720.0,0.21963219]
[1749923527139,0.41152885,104730.0,104720.0,0.21963237]
[1749923527140,0.60249682,104730.0,104720.0,0.21963237]
[1749923527358,0.62484901,104730.0,104720.0,0.21963237]
[1749923527585,0.61591819,104730.0,104720.0,0.21963237]
[1749923527790,0.62485119,104730.0,104720.0,0.21963237]
[1749923527996,0.61591819,104730.0,104720.0,0.21963237]
[1749923528216,0.62485119,104730.0,104720.0,0.21963237]
[1749923528631,0.61591819,104730.0,104720.0,0.21963237]
[1749923529542,0.61591819,104730.0,104720.0,0.22918109]
[1749923529989,0.59295618,104730.0,104720.0,0.23872972]
[1749923530203,0.39244055,104730.0,104720.0,0.23872972]
[1749923530438,0.39244104,104730.0,104720.0,0.23872972]
[1749923530866,0.36440587,104730.0,104720.0,0.23872972]
[1749923531080,0.38289268,104730.0,104720.0,0.39797148]
[1749923531346,0.32287703,104730.0,104720.0,0.39797148]
[1749923531580,0.35152054,104730.0,104720.0,0.39797148]
[1749923531803,0.34258167,104730.0,104720.0,0.36667148]
[1749923532018,0.34258158,104730.0,104720.0,0.36667148]
[1749923532454,0.36106878,104730.0,104720.0,0.33497148]
[1749923532667,0.35152132,104730.0,104720.0,0.33797148]
[1749923532873,0.3610695,104730.0,104720.0,0.33797148]
[1749923533107,0.36106951,104730.0,104720.0,0.33797148]
[1749923533352,0.35212966,104730.0,104720.0,0.33797148]
[1749923533576,0.36107072,104730.0,104720.0,0.33797148]
[1749923533790,0.35152265,104730.0,104720.0,0.33797148]
[1749923534007,0.35152264,104730.0,104720.0,0.33797148]
[1749923534219,0.36107082,104730.0,104720.0,0.33797148]
[1749923534440,0.36107355,104730.0,104720.0,0.33797148]
[1749923534663,0.36107356,104730.0,104720.0,0.33797148]
[1749923534874,0.36107357,104730.0,104720.0,0.33797148]
[1749923535108,0.35212976,104730.0,104720.0,0.33797148]
[1749923535323,0.36107357,104730.0,104720.0,0.33797148]
[1749923535533,0.35212976,104730.0,104720.0,0.33797148]
[1749923536158,0.36107378,104730.0,104720.0,0.33797148]
[1749923536799,0.36107443,104730.0,104720.0,0.33797148]
[1749923537216,0.35212976,104730.0,104720.0,0.33797148]
[1749923538092,0.36107513,104730.0,104720.0,0.33797148]
[1749923538501,0.36107393,104730.0,104720.0,0.33797148]
[1749923538935,0.35212976,104730.0,104720.0,0.33797148]
[1749923539141,0.36107393,104730.0,104720.0,0.33797148]
[1749923539339,0.35152575,104730.0,104720.0,0.33797148]
[1749923539551,0.36107138,104730.0,104720.0,0.33797148]
[1749923539749,0.35212976,104730.0,104720.0,0.36927148]
[1749923540172,0.36107138,104730.0,104720.0,0.36927148]
[1749923540385,0.35152319,104730.0,104720.0,0.36927148]
[1749923540589,0.36106753,104730.0,104720.0,0.36927148]
[1749923540804,0.35212976,104730.0,104720.0,0.36927148]
[1749923541010,0.36106755,104730.0,104720.0,0.36927148]
[1749923541246,0.59193981,104730.0,104720.0,0.003]
[1749923541477,0.6215388,104730.0,104720.0,0.003]
[1749923542554,0.62153463,104730.0,104720.0,0.003]
[1749923542760,0.61482146,104730.0,104720.0,0.003]
[1749923542995,0.20055085,104720.0,104700.0,0.42808333]
[1749923543212,0.02864945,104710.0,104700.0,0.50367554]
[1749923543645,0.03820327,104700.0,104690.0,0.26179222]